fUSD/lending_fUSD_20240122
["ID","MTS","AMOUNT","RATE_DAILY","PERIOD"]
[312529675,1705942351993,-578.69,0.00057808,120]
[312529676,1705942352002,-690.74,0.00057808,120]
[312529677,1705942352011,-573.60405286,0.00057808,120]
[312529678,1705942352021,-655.68,0.00057808,120]
[312529679,1705942352030,-815.64,0.00057808,120]
[312529680,1705942352039,-535.82,0.00057808,120]
[312529681,1705942352049,-500.0,0.00057808,120]
[312529682,1705942352058,-987.66,0.00057808,120]
[312529683,1705942352067,-1207.6,0.00057808,120]
[312529684,1705942352076,-799.27,0.00057808,120]
[312529685,1705942352085,-509.48,0.00057808,120]
[312529686,1705942352095,-1236.74,0.00057808,120]
[312529687,1705942352104,-500.0,0.00057808,120]
[312529688,1705942352113,-794.46,0.00057808,120]
[312529689,1705942352121,-676.21,0.00057808,120]
[312529690,1705942352131,-500.0,0.00057808,120]
[312529691,1705942352140,-784.83,0.00057808,120]
[312529692,1705942352149,-1206.35,0.00057808,120]
[312529693,1705942352159,-500.0,0.00057808,7]
[312529694,1705942352170,-940.83,0.00057808,120]
[312529695,1705942352179,-766.88,0.00057808,120]
[312529696,1705942352188,-500.0,0.00057808,120]
[312529697,1705942352197,-882.54,0.00057808,2]
[312529698,1705942352207,-1098.14,0.00057808,120]
[312529699,1705942352216,-855.01,0.00057808,120]
[312529700,1705942352225,-1433.57,0.00057808,120]
[312529701,1705942352235,-500.0,0.00057808,120]
[312529702,1705942352244,-500.0,0.00057808,120]
[312529703,1705942352253,-1004.38,0.00057808,120]
[312529704,1705942352262,-613.63,0.00057808,120]
[312529705,1705942352272,-500.0,0.00057808,120]
[312529706,1705942352281,-511.59,0.00057808,120]
[312529707,1705942352291,-851.13,0.00057808,120]
[312529708,1705942352300,-933.89,0.00057808,120]
[312529709,1705942352310,-711.76,0.00057808,120]
[312529710,1705942352319,-572.52,0.00057808,120]
[312529711,1705942352329,-773.03,0.00057808,120]
[312529712,1705942352339,-1058.65,0.00057808,120]
[312529713,1705942352348,-762.64,0.00057808,120]
[312529714,1705942352358,-509.59,0.00057808,120]
[312529715,1705942352368,-500.0,0.00057808,120]
[312529716,1705942352377,-1002.76,0.00057808,120]
[312529717,1705942352386,-665.88,0.00057808,120]
[312529718,1705942352396,-827.04,0.00057808,120]
[312529719,1705942352405,-500.0,0.00057808,120]
[312529720,1705942352415,-904.02,0.00057808,120]
[312529721,1705942352425,-704.08,0.00057808,120]
[312529722,1705942352435,-872.35,0.00057808,120]
[312529723,1705942352445,-1047.73,0.00057808,120]
[312529724,1705942352455,-787.53,0.00057808,120]
[312529725,1705942352465,-500.0,0.00057808,120]
[312529726,1705942352474,-522.37282339,0.00057808,120]
[312529727,1705942352483,-973.07,0.00057808,120]
[312529728,1705942352496,-1055.58,0.00057808,120]
[312529729,1705942352506,-500.0,0.00057808,120]
[312529730,1705942352516,-592.41,0.00057808,120]
[312529731,1705942352531,-500.0,0.00057808,120]
[312529732,1705942352542,-1284.43,0.00057808,120]
[312529733,1705942352552,-500.0,0.00057808,120]
[312529734,1705942352562,-1139.91,0.00057808,120]
[312529735,1705942352573,-562.17,0.00057808,120]
[312529736,1705942352583,-539.03,0.00057808,120]
[312529737,1705942352592,-500.0,0.00057808,120]
[312529738,1705942352602,-1374.87,0.00057808,120]
[312529739,1705942352611,-750.36,0.00057808,120]
[312529740,1705942352621,-711.43,0.00057808,120]
[312529741,1705942353497,-579.03,0.00057808,120]
[312529742,1705942353520,-500.0,0.00057808,120]
[312529743,1705942353537,-1076.02,0.00057808,120]
[312529744,1705942353554,-277.33492969,0.00057808,120]
[312529745,1705942353571,-1080.86,0.00057808,120]
[312529746,1705942353590,-559.5,0.00057808,120]
[312529747,1705942353600,-500.0,0.00057808,120]
[312529748,1705942353609,-1198.92,0.00057808,120]
[312529749,1705942353619,-546.17,0.00057808,120]
[312529750,1705942353628,-1032.79,0.00057808,120]
[312529751,1705942353637,-912.89,0.00057808,120]
[312529752,1705942353647,-1291.04,0.00057808,120]
[312529753,1705942353656,-719.62,0.00057808,120]
[312529754,1705942353666,-1228.18,0.00057808,120]
[312529755,1705942353677,-1064.71,0.00057808,120]
[312529756,1705942353686,-933.5,0.00057808,120]
[312529757,1705942353695,-500.0,0.00057808,120]
[312529758,1705942353706,-500.0,0.00057808,120]
[312529759,1705942353716,-1092.85,0.00057808,120]
[312529760,1705942353725,-512.46,0.00057808,120]
[312529761,1705942353735,-1122.93,0.00057808,120]
[312529762,1705942353745,-834.87,0.00057808,120]
[312529763,1705942353754,-1098.97,0.00057808,120]
[312529764,1705942353764,-500.0,0.00057808,120]
[312529765,1705942353773,-500.0,0.00057808,120]
[312529766,1705942353783,-1124.27,0.00057808,120]
[312529767,1705942353792,-548.35,0.00057808,120]
[312529768,1705942353801,-676.24,0.00057808,120]
[312529769,1705942353811,-1234.09,0.00057808,120]
[312529770,1705942353820,-1183.29,0.00057808,120]
[312529771,1705942353829,-500.0,0.00057808,120]
[312529772,1705942353839,-500.0,0.00057808,120]
[312529773,1705942353848,-942.51,0.00057808,120]
[312529774,1705942353857,-539.8,0.00057808,120]
[312529775,1705942353867,-500.0,0.00057808,120]
[312529776,1705942353876,-1200.35,0.00057808,120]
[312529777,1705942353885,-995.47,0.00057808,120]
[312529778,1705942353894,-1034.97,0.00057808,120]
[312529779,1705942353904,-500.0,0.00057808,120]
[312529780,1705942353913,-874.88,0.00057808,120]
[312529781,1705942353923,-507.23,0.00057808,120]
[312529782,1705942353933,-562.05,0.00057808,120]
[312529783,1705942353942,-514.2,0.00057808,120]
[312529784,1705942353951,-1038.58,0.00057808,120]
[312529785,1705942353960,-1546.51,0.00057808,2]
[312529786,1705942353969,-500.0,0.00057808,120]
[312529787,1705942353978,-1166.09,0.00057808,120]
[312529788,1705942353987,-552.78,0.00057808,120]
[312529789,1705942353997,-916.75,0.00057808,120]
[312529790,1705942354006,-825.25,0.00057808,120]
[312529791,1705942354016,-731.13,0.00057808,120]
[312529792,1705942354025,-703.42,0.00057808,120]
[312529793,1705942354035,-597.16,0.00057808,120]
[312529794,1705942354044,-692.04,0.00057808,120]
[312529795,1705942354053,-609.93,0.00057808,120]
[312529796,1705942354062,-500.0,0.00057808,120]
[312529797,1705942354071,-668.81,0.00057808,120]
[312529798,1705942354081,-604.43,0.00057808,120]
[312529799,1705942354090,-435.51,0.00057808,120]
[312529800,1705942354100,-820.72,0.00057808,120]
[312529801,1705942354109,-500.0,0.00057808,2]
[312529802,1705942354118,-510.66,0.00057808,120]
[312529803,1705942354128,-1104.92,0.00057808,120]
[312529804,1705942354137,-500.0,0.00057808,120]
[312529805,1705942354147,-150.0,0.00057808,14]
[312529806,1705942354156,-611.57,0.00057808,120]
[312529807,1705942354165,-500.0,0.00057808,120]
[312529808,1705942354175,-705.3,0.00057808,120]
[312529809,1705942354185,-782.46,0.00057808,120]
[312529810,1705942354194,-1193.75,0.00057808,120]
[312529811,1705942354203,-500.0,0.00057808,120]
[312529812,1705942354212,-841.24,0.00057808,120]
[312529813,1705942354223,-774.06,0.00057808,120]
[312529814,1705942354232,-500.0,0.00057808,120]
[312529815,1705942354241,-706.09,0.00057808,120]
[312529816,1705942354250,-1049.13,0.00057808,120]
[312529817,1705942354261,-500.0,0.00057808,120]
[312529818,1705942354271,-722.39,0.00057808,120]
[312529819,1705942354280,-500.0,0.00057808,120]
[312529820,1705942354290,-1098.78,0.00057808,120]
[312529821,1705942354299,-1040.43,0.00057808,120]
[312529822,1705942354309,-676.51,0.00057808,120]
[312529823,1705942354319,-800.29,0.00057808,120]
[312529824,1705942354329,-977.04,0.00057808,120]
[312529825,1705942354338,-622.73,0.00057808,120]
[312529826,1705942354348,-812.24,0.00057808,120]
[312529827,1705942354358,-940.44,0.00057808,120]
[312529828,1705942354368,-4003.53,0.00057808,120]
[312529829,1705942354377,-762.89,0.00057808,120]
[312529830,1705942354387,-543.32,0.00057808,120]
[312529831,1705942354396,-683.59,0.00057808,120]
[312529832,1705942354406,-735.35,0.00057808,120]
[312529833,1705942354415,-500.0,0.00057808,120]
[312529834,1705942354426,-7945.75,0.00057808,120]
[312529835,1705942354437,-752.98,0.00057808,120]
[312529836,1705942354446,-1119.94,0.00057808,120]
[312529837,1705942354455,-658.72,0.00057808,120]
[312529838,1705942354464,-590.12,0.00057808,120]
[312529839,1705942354473,-500.0,0.00057808,120]
[312529840,1705942354483,-1197.36,0.00057808,120]
[312529841,1705942354493,-873.76,0.00057808,120]
[312529842,1705942354503,-536.78,0.00057808,120]
[312529843,1705942354517,-500.0,0.00057808,120]
[312529844,1705942354526,-1072.31,0.00057808,120]
[312529845,1705942354537,-500.0,0.00057808,120]
[312529846,1705942354546,-916.28,0.00057808,120]
[312529847,1705942354557,-500.0,0.00057808,120]
[312529848,1705942354566,-894.82,0.00057808,120]
[312529849,1705942354577,-563.54,0.00057808,120]
[312529850,1705942354588,-984.92,0.00057808,120]
[312529851,1705942354598,-2024.59,0.00057808,7]
[312529852,1705942354607,-500.0,0.00057808,120]
[312529853,1705942354617,-500.0,0.00057808,120]
[312529854,1705942354626,-873.84,0.00057808,120]
[312529855,1705942354637,-1503.79,0.00057808,120]
[312529856,1705942354647,-500.0,0.00057808,120]
[312529857,1705942354658,-646.15,0.00057808,120]
[312529858,1705942354667,-781.35,0.00057808,120]
[312529859,1705942354677,-564.76,0.00057808,120]
[312529860,1705942354687,-519.13,0.00057808,120]
[312529861,1705942354696,-1095.74,0.00057808,120]
[312529862,1705942354706,-1291.13,0.00057808,120]
[312529863,1705942354716,-1064.36,0.00057808,120]
[312529864,1705942354726,-712.79,0.00057808,120]
[312529865,1705942354735,-736.14,0.00057808,120]
[312529866,1705942354745,-1311.07,0.00057808,120]
[312529867,1705942354755,-500.0,0.00057808,120]
[312529868,1705942354766,-340.04,0.00057808,120]
[312529869,1705942354775,-997.27,0.00057808,120]
[312529870,1705942354785,-1000.0,0.00057808,7]
[312529871,1705942354795,-879.87,0.00057808,120]
[312529872,1705942354806,-1180.26,0.00057808,30]
[312529873,1705942354815,-500.0,0.00057808,120]
[312529874,1705942354825,-172.1480659,0.00057808,120]
[312529875,1705942354834,-500.0,0.00057808,120]
[312529876,1705942354844,-1101.52,0.00057808,120]
[312529877,1705942354858,-1000.0,0.00057808,120]
[312529878,1705942354867,-596.97,0.00057808,120]
[312529879,1705942354877,-500.0,0.00057808,120]
[312529880,1705942354887,-677.87,0.00057808,120]
[312529881,1705942354898,-758.09,0.00057808,120]
[312529882,1705942354907,-500.0,0.00057808,120]
[312529883,1705942354917,-678.57,0.00057808,120]
[312529884,1705942354927,-597.19853193,0.00057808,7]
[312529885,1705942354937,-764.95,0.00057808,120]
[312529886,1705942354947,-535.75,0.00057808,120]
[312529887,1705942354957,-1153.09,0.00057808,120]
[312529888,1705942354966,-1045.19,0.00057808,120]
[312529889,1705942354975,-768.51,0.00057808,120]
[312529890,1705942354984,-500.0,0.00057808,120]
[312529891,1705942354994,-876.25,0.00057808,120]
[312529892,1705942355003,-552.31,0.00057808,120]
[312529893,1705942355013,-697.88,0.00057808,120]
[312529894,1705942355023,-500.0,0.00057808,120]
[312529895,1705942355033,-619.89,0.00057808,120]
[312529896,1705942355043,-746.34,0.00057808,120]
[312529897,1705942355053,-503.91,0.00057808,120]
[312529898,1705942355063,-770.55,0.00057808,120]
[312529899,1705942355073,-515.99,0.00057808,120]
[312529900,1705942355083,-533.69,0.00057808,120]
[312529901,1705942355093,-1181.85,0.00057808,120]
[312529902,1705942355103,-500.0,0.00057808,120]
[312529903,1705942355113,-1727.31,0.00057808,120]
[312529904,1705942355123,-500.0,0.00057808,120]
[312529905,1705942355133,-500.0,0.00057808,120]
[312529906,1705942355143,-953.83,0.00057808,120]
[312529907,1705942355153,-609.57,0.00057808,120]
[312529908,1705942355163,-500.0,0.00057808,120]
[312529909,1705942355173,-517.57,0.00057808,120]
[312529910,1705942355183,-759.29,0.00057808,120]
[312529911,1705942355193,-1765.42,0.00057808,120]
[312529912,1705942355202,-945.78,0.00057808,120]
[312529913,1705942355212,-2780.15,0.00057808,120]
[312529914,1705942355222,-563.49,0.00057808,120]
[312529915,1705942355232,-739.81,0.00057808,120]
[312529916,1705942355242,-630.92,0.00057808,120]
[312529917,1705942355251,-500.0,0.00057808,120]
[312529918,1705942355262,-6946.56,0.00057808,120]
[312529919,1705942355271,-779.09,0.00057808,120]
[312529920,1705942355281,-729.29,0.00057808,120]
[312529921,1705942355290,-1112.59,0.00057808,120]
[312529922,1705942355300,-191.11664414,0.00057808,120]
[312529923,1705942355310,-500.0,0.00057808,120]
[312529924,1705942355320,-8171.7,0.00057808,120]
[312529925,1705942355330,-598.39,0.00057808,120]
[312529926,1705942355341,-296.70140752,0.00057808,120]
[312529927,1705942367523,321.55203102,0.00021,2]
[312529928,1705942369727,5432.65111215,0.00015,10]
[312529929,1705942372600,2505.21442709,0.0002,2]
[312529930,1705942379192,966.60782665,0.0002,2]
[312529931,1705942380192,1708.71966275,0.00020999,2]
[312529932,1705942381901,233.38000799,0.00020998,2]
[312529933,1705942382011,186.41515541,0.00019999,2]
[312529934,1705942382053,244.64133608,0.00020998,2]
[312529935,1705942382562,4489.60407291,0.00020998,2]
[312529936,1705942382708,867.2962807,0.00019999,2]
[312529937,1705942383209,1000.0,0.00020997,2]
[312529938,1705942454237,309.999999,0.0002,2]
[312529940,1705942465706,5195.8654879,0.00020997,2]
[312529941,1705942483689,1228.66439521,0.00020997,2]
[312529959,1705942670813,500.0,0.00020997,2]
[312529960,1705942686795,500.0,0.00020997,2]
[312529961,1705942708801,500.0,0.00020997,2]
[312529963,1705942728809,500.0,0.00020997,2]
[312529965,1705942746823,500.0,0.00020997,2]
[312529968,1705942762832,500.0,0.00020997,2]
[312529969,1705942780829,500.0,0.00020997,2]
[312529970,1705942851910,-310.42145107,0.00021353,2]
[312529971,1705942851931,-232.19045124,0.00021353,2]
[312529972,1705942851950,-215.71744447,0.00021353,2]
[312529973,1705942851970,-1241.67065322,0.00021354,2]
[312529974,1705942851997,292.32492895,0.00020997,2]
[312529975,1705942852464,-1905.24632412,0.00021354,2]
[312529976,1705942852489,-94.75367588,0.00021354,2]
[312529977,1705942853046,-2000.0,0.00021354,2]
[312529978,1705942853589,-2000.0,0.00021354,2]
[312529979,1705942854715,-155.55666333,0.00021354,2]
[312529980,1705942856809,155.0,0.00021352,2]
[312529981,1705942857919,1034.11803151,0.00020997,2]
[312529982,1705942860457,655.32530516,0.00021354,2]
[312529983,1705942861806,479.07903654,0.00020997,2]
[312529984,1705942877891,-543.34550297,0.00021352,2]
[312529985,1705942877915,-233.38000799,0.00021353,2]
[312529986,1705942877939,-246.87848163,0.00021353,2]
[312529987,1705942877961,-529.74752157,0.00021353,2]
[312529988,1705942878545,-318.64848584,0.00021354,2]
[312529989,1705942902092,-314.52691818,0.0002135,2]
[312529990,1705942902115,-155.0,0.00021351,2]
[312529991,1705942902135,-1530.47308182,0.00021351,2]
[312529992,1705942902999,-1074.52660533,0.00021351,2]
[312529993,1705942903021,-925.47339467,0.00021352,2]
[312529994,1705942904100,-1978.67390393,0.00021352,2]
[312529995,1705942904123,-21.32609607,0.00021353,2]
[312529996,1705942905057,-133.67390393,0.00021353,2]
[312529997,1705942905080,-1866.32609607,0.00021353,2]
[312529998,1705942905955,-1180.14540482,0.00021353,2]
[312529999,1705942905977,-819.85459518,0.00021354,2]
[312530000,1705942906822,6088.06824423,0.00020997,2]
[312530001,1705942906971,-711.38604091,0.00021354,2]
[312530002,1705942906993,-155.0,0.00021354,2]
[312530003,1705942907135,544.61632304,0.00020997,2]
[312530004,1705942907738,588.99763605,0.00020997,2]
[312530005,1705942907760,3362.04604178,0.00020997,2]
[312530006,1705942911812,1416.2717549,0.00020997,2]
[312530007,1705942945927,583.7282451,0.00020997,2]
[312530008,1705942945950,2000.0,0.00020997,2]
[312530009,1705942945972,9527.88511983,0.00020997,2]
[312530010,1705942969646,159.89,0.00019407,2]
[312530011,1705942979927,1840.11,0.00019407,2]
[312530012,1705942979949,159.89,0.00019407,2]
[312530013,1705943117636,150.0,0.00020688,2]
[312530014,1705943117912,150.0,0.00020783,4]
[312530015,1705943118221,150.0,0.00020879,4]
[312530016,1705943118507,150.0,0.00020975,4]
[312530017,1705943118817,150.0,0.00021071,4]
[312530018,1705943119131,150.0,0.00021167,4]
[312530019,1705943119419,150.0,0.00021262,4]
[312530020,1705943119509,200.0,0.00021339,2]
[312530021,1705943154837,360.75913577,0.00018396,2]
[312530022,1705943163959,229.35086423,0.00021339,2]
[312530023,1705943163980,1770.64913577,0.00021339,2]
[312530024,1705943165950,195.02,0.00021319,2]
[312530025,1705943214548,34.33086423,0.00021339,2]
[312530026,1705943214569,278.10913577,0.00021339,2]
[312530027,1705943223585,259.95790321,0.00021319,2]
[312530028,1705943228015,1461.93296102,0.00021319,2]
[312530029,1705943228037,538.06703898,0.00021319,2]
[312530030,1705943228118,-837.97,0.00021356,2]
[312530031,1705943228138,-150.0,0.00021358,4]
[312530032,1705943228158,-250.0,0.00021368,2]
[312530033,1705943228180,-150.0,0.00021454,4]
[312530034,1705943228199,-1278.36,0.0002149,2]
[312530035,1705943228218,-140.34724133,0.00021499,2]
[312530037,1705943241573,259.57783711,0.00021319,2]
[312530038,1705943242112,-1967.58951745,0.00021394,2]
[312530039,1705943243969,1202.35512391,0.00021319,2]
[312530040,1705943302066,-786.42,0.00021305,2]
[312530041,1705943302088,-797.64487609,0.00021319,2]
[312530042,1705943319984,415.93512391,0.00021319,2]
[312530043,1705943320232,1584.06487609,0.00021319,2]
[312530044,1705943348179,-155.0,0.0002136,2]
[312530045,1705943348205,-852.69,0.00021361,2]
[312530046,1705943348227,-32.41048255,0.00021394,2]
[312530047,1705943348247,-250.0,0.00021425,2]
[312530048,1705943348270,-154.17,0.00021456,2]
[312530049,1705943348290,-79.92275867,0.00021499,2]
[312530050,1705943348311,-999.99,0.00021499,2]
[312530051,1705943348334,-154.17,0.00021518,2]
[312530052,1705943348355,-150.0,0.0002155,4]
[312530053,1705943348377,-47.27862949,0.00021581,2]
[312530054,1705943350179,-395.00994012,0.00021319,2]
[312530055,1705943350202,-106.89137051,0.00021581,2]
[312530056,1705943350221,-583.71584965,0.000216,2]
[312530057,1705943350241,-154.17,0.00021643,2]
[312530058,1705943350260,-384.92,0.00021644,2]
[312530059,1705943350279,-150.0,0.00021645,4]
[312530060,1705943350298,-1404.17,0.00021645,2]
[312530061,1705943350317,-150.0,0.00021658,2]
[312530062,1705943350336,-150.0,0.00021658,2]
[312530063,1705943350357,-20411.09,0.00021659,2]
[312530064,1705943350377,-159.89,0.00021671,2]
[312530065,1705943350397,-154.17,0.00021705,2]
[312530066,1705943350414,-436.36,0.0002172,2]
[312530067,1705943350433,-299.99,0.0002172,7]
[312530068,1705943350454,-150.99,0.0002172,2]
[312530069,1705943350475,-160.00547713,0.00021732,2]
[312530070,1705943350503,-499.99,0.00021735,2]
[312530071,1705943350524,-161.35,0.00021738,2]
[312530072,1705943350544,-150.0,0.00021741,4]
[312530073,1705943350576,-154.17,0.00021767,2]
[312530074,1705943350597,-154.17,0.00021829,2]
[312530075,1705943350616,-150.0,0.00021837,4]
[312530076,1705943350635,-3126.62522492,0.00021846,2]
[312530077,1705943350654,-769.03,0.00021846,2]
[312530078,1705943350673,-1903.58,0.00021846,2]
[312530079,1705943350691,-5284.22,0.00021846,2]
[312530080,1705943350713,-3698.7951,0.00021848,7]
[312530081,1705943350733,-160.00547709,0.00021879,2]
[312530082,1705943350753,-154.17,0.00021891,2]
[312530083,1705943350773,-177.96,0.00021897,2]
[312530084,1705943350792,-2500.0,0.00021918,3]
[312530085,1705943351018,-250.0,0.00021918,2]
[312530086,1705943351040,-150.0,0.00021933,4]
[312530087,1705943351060,-154.17,0.00021953,2]
[312530088,1705943351079,-155.24871306,0.00022,2]
[312530089,1705943351098,-150.99,0.00022,2]
[312530090,1705943351117,-352.39,0.00022,2]
[312530091,1705943351136,-257.14,0.00022,2]
[312530092,1705943351155,-1042.70064617,0.00022,2]
[312530093,1705943351176,-154.17,0.00022015,2]
[312530094,1705943351196,-160.00547709,0.00022025,2]
[312530095,1705943351218,-150.0,0.00022029,4]
[312530096,1705943351238,-154.17,0.00022077,2]
[312530097,1705943351257,-150.0,0.00022124,4]
[312530098,1705943351275,-513.92,0.00022137,2]
[312530099,1705943351294,-160.00547709,0.00022172,2]
[312530100,1705943351314,-150.0,0.0002222,4]
[312530101,1705943351335,-5000.0,0.00022241,2]
[312530102,1705943351355,-150.0,0.00022316,4]
[312530103,1705943351375,-160.00547709,0.00022318,2]
[312530104,1705943351399,-161.35,0.00022322,2]
[312530105,1705943351419,-150.0,0.00022412,4]
[312530106,1705943351438,-384.92,0.00022445,2]
[312530107,1705943351460,-160.00547709,0.00022465,2]
[312530108,1705943351484,-150.0,0.00022507,4]
[312530109,1705943351504,-150.0,0.00022603,4]
[312530110,1705943351524,-160.00547709,0.00022611,2]
[312530111,1705943351544,-150.0,0.00022699,4]
[312530112,1705943351564,-283.68,0.00022709,2]
[312530113,1705943351584,-160.00547709,0.00022758,2]
[312530114,1705943351604,-269.68289212,0.00022768,2]
[312530115,1705943351623,-6051.7367897,0.00022769,2]
[312530116,1705943351644,-150.0,0.00022795,4]
[312530117,1705943351664,-3975.1296,0.000228,2]
[312530118,1705943351684,-223.1148,0.00022804,2]
[312530119,1705943351708,-150.0,0.00022891,4]
[312530120,1705943351729,-791.0889,0.00022897,2]
[312530121,1705943351750,-171.09077796,0.00022897,2]
[312530122,1705943351769,-169.31838675,0.00022898,2]
[312530123,1705943351790,-3095.19915375,0.00022898,2]
[312530124,1705943351810,-352.88070068,0.00022898,2]
[312530125,1705943351833,-166.32859422,0.00022898,2]
[312530126,1705943351854,-3095.19915366,0.00022899,2]
[312530127,1705943351873,-3095.19915366,0.00022899,2]
[312530128,1705943351894,-3095.19915366,0.000229,2]
[312530129,1705943351914,-7427.45256562,0.000229,2]
[312530130,1705943351935,-7427.45256555,0.000229,2]
[312530131,1705943351955,-7427.45256555,0.000229,2]
[312530132,1705943351975,-7427.45256555,0.000229,2]
[312530133,1705943351996,-7427.45256555,0.000229,2]
[312530134,1705943352200,-1452.42753134,0.000229,2]
[312530135,1705943356665,427.26741868,0.00020696,5]
[312530136,1705943360091,-1243.91056194,0.00021319,2]
[312530137,1705943360112,-154.17,0.0002214,2]
[312530138,1705943360133,-154.17,0.00022202,2]
[312530139,1705943360154,-154.17,0.00022264,2]
[312530140,1705943360175,-154.17,0.00022326,2]
[312530141,1705943360195,-154.17,0.00022388,2]
[312530142,1705943360218,-154.17,0.0002245,2]
[312530143,1705943360238,-154.17,0.00022512,2]
[312530144,1705943360259,-154.17,0.00022574,2]
[312530145,1705943360279,-5975.02503421,0.000229,2]
[312530146,1705943360299,-7427.45256555,0.000229,2]
[312530147,1705943360319,-7427.45256555,0.000229,2]
[312530148,1705943360339,-7427.45256555,0.000229,2]
[312530149,1705943360359,-3095.19915366,0.000229,2]
[312530150,1705943360380,-7427.45256555,0.000229,2]
[312530151,1705943360400,-105450.48498799,0.000229,2]
[312530152,1705943363863,361.07949794,0.00018396,2]
[312530153,1705943374077,-158.58624909,0.00022877,2]
[312530154,1705943374097,-161.91377104,0.00022898,2]
[312530155,1705943374115,-0.48862987,0.00022899,2]
[312530159,1705943431860,-532.47114706,0.00021947,2]
[312530160,1705943431923,-96.91873246,0.00021947,2]
[312530161,1705943431934,-230.95,0.00021948,2]
[312530162,1705943431945,-230.95,0.0002276,2]
[312530163,1705943431956,-516.34477529,0.00022899,2]
[312530164,1705943431966,-153.37666061,0.000229,2]
[312530165,1705943431977,-2000.0,0.000229,2]
[312530166,1705943431987,-200.0,0.000229,2]
[312530167,1705943431998,-3095.19915366,0.00022901,2]
[312530178,1705943432542,-2476.26067798,0.00022901,2]
[312530179,1705943432577,-618.93847568,0.00022901,2]
[312530180,1705943432591,-3095.19915366,0.00022902,2]
[312530181,1705943432600,-3095.19915366,0.00022902,2]
[312530182,1705943432610,-2117.64827085,0.00022903,2]
[312530183,1705943432642,-977.55088281,0.00022903,2]
[312530184,1705943432652,-661.36838456,0.00022903,2]
[312530185,1705943432663,-2433.8307691,0.00022903,2]
[312530186,1705943432673,-7427.45256555,0.00022904,2]
[312530187,1705943432682,-169.31838675,0.00022904,2]
[312530188,1705943432692,-160.00547709,0.00022904,2]
[312530189,1705943432701,-968.00785641,0.00022904,2]
[312530190,1705943433255,-0.07120766,0.00022904,2]
[312530191,1705943433279,-753.8500003,0.00022904,2]
[312530192,1705943433290,-295.11878015,0.00022904,2]
[312530193,1705943433302,-1078.15130914,0.00022904,2]
[312530194,1705943433311,-681.82555255,0.00022904,2]
[312530195,1705943436078,165.18,0.00017037,2]
[312530208,1705943437840,-499.99,0.00022903,2]
[312530210,1705943437850,-6745.627013,0.00022904,2]
[312530211,1705943437859,-218.81122716,0.00022904,2]
[312530212,1705943437869,-3128.17970588,0.00022904,2]
[312530213,1705943437878,-22954.85095135,0.00022904,2]
[312530214,1705943437888,-705.76140132,0.00022904,2]
[312530215,1705943437897,-876.63779752,0.00022904,6]
[312530216,1705943437906,-150.33667951,0.00022907,2]
[312530217,1705943437919,-11.01332049,0.00022907,2]
[312530218,1705943437928,-162.74596975,0.00022973,2]
[312530219,1705943437937,-417.99759003,0.00022986,2]
[312530220,1705943437947,-235.48094785,0.00022986,4]
[312530221,1705943437957,-195.23777855,0.00022995,2]
[312530222,1705943437973,-188.43026869,0.00022995,2]
[312530223,1705943437982,-174.29517437,0.00022995,2]